bitfinex/quotes_ETHUSD_20211001
["timestamp","ask_amount","ask_price","bid_price","bid_amount"]
[1633072694217,0.76879823,3039.8,3039.1,0.76948419]
[1633072694417,0.76879823,3039.8,3039.1,0.038564]
[1633072694617,0.76879823,3039.8,3039.2,0.003]
[1633072694817,0.0532273,3040.2,3039.2,0.003]
[1633072695018,0.00223432,3039.8,3039.4,2.961542]
[1633072695217,0.00223432,3039.8,3039.5,1.31301621]
[1633072695418,0.00223432,3039.8,3039.5,0.04161621]
[1633072695617,1.13552066,3039.7,3039.5,0.003]
[1633072695819,0.158,3039.6,3039.5,0.003]
[1633072696019,0.18233932,3039.6,3039.0,0.006]
[1633072696219,0.18233932,3039.6,3038.5,0.009]
[1633072696420,0.11840045,3039.5,3038.6,0.04242806]
[1633072696618,0.11840045,3039.5,3038.5,1.2027]
[1633072696818,0.11840045,3039.5,3038.7,0.006]
[1633072697018,0.83969948,3039.1,3038.6,0.04398275]
[1633072697222,0.11840045,3039.5,3038.8,2.9683309]
[1633072697421,0.11840045,3039.5,3038.9,1.2029]
[1633072697624,0.11840045,3039.5,3038.9,0.006]
[1633072697824,0.88119261,3039.3,3039.0,0.006]
[1633072698219,0.88119261,3039.3,3038.5,1.703]
[1633072698220,0.88119261,3039.3,3038.9,0.006]
[1633072698420,0.004002,3039.0,3038.9,0.006]
[1633072698620,0.18688374,3039.0,3038.6,0.006]
[1633072698820,0.158,3039.2,3038.6,0.006]
[1633072699023,3.29197,3040.0,3038.6,2.44766377]
[1633072699024,0.158,3040.0,3038.6,2.44766377]
[1633072699222,4.96545614,3040.3,3038.9,2.9616812]
[1633072699420,0.158,3040.0,3038.9,2.99189351]
[1633072699621,0.158,3040.0,3039.0,0.006]
[1633072699821,1.15466611,3039.3,3039.0,0.006]
[1633072700021,0.159,3040.0,3039.0,0.006]
[1633072700022,0.90890653,3039.2,3039.0,0.006]
[1633072700222,3.00162509,3039.2,3039.0,0.006]
[1633072700424,6.00547653,3039.2,3038.6,0.006]
[1633072700622,2.75356041,3039.1,3038.6,0.006]
[1633072700821,1.06690653,3039.2,3038.6,0.006]
[1633072701021,1.0,3039.0,3038.6,0.006]
[1633072701223,4.36440434,3039.1,3038.6,0.006]
[1633072701224,3.12499709,3038.9,3038.6,0.006]
[1633072701424,3.12499709,3038.9,3037.0,11.0018]
[1633072701425,4.36440434,3039.1,3037.1,0.003]
[1633072701426,0.92429687,3037.5,3037.1,0.003]
[1633072701629,3.03475219,3037.4,3037.1,0.003]
[1633072701824,0.158,3037.3,3036.9,0.006]
[1633072702025,0.158,3037.3,3036.7,0.006]
[1633072702026,2.28976436,3037.3,3036.7,0.006]
[1633072702222,0.83629011,3037.0,3036.3,0.90212844]
[1633072702423,3.66166436,3037.3,3036.3,0.91112844]
[1633072702424,2.70682074,3036.9,3036.3,0.91112844]
[1633072702623,0.05959445,3037.3,3036.5,2.9638698]
[1633072702822,0.05959445,3037.3,3036.7,1.2745]
[1633072703021,0.05959445,3037.3,3036.6,0.006]
[1633072703022,0.04959445,3037.3,3036.6,0.006]
[1633072703224,0.04959445,3037.3,3036.8,0.006]
[1633072703425,0.92429687,3037.5,3036.8,0.006]
[1633072703426,0.92429687,3037.5,3037.1,3.29212]
[1633072703624,0.92429687,3037.5,3037.1,3.32605381]
[1633072703824,0.003,3038.5,3037.4,0.008367]
[1633072704025,0.003,3038.5,3037.4,1.889967]
[1633072704227,0.158,3039.6,3037.5,1.2896]
[1633072704425,0.158,3039.6,3037.8,3.29141]
[1633072704626,0.158,3039.6,3038.0,0.9266]
[1633072704627,1.20326271,3038.1,3038.0,0.9266]
[1633072704906,1.20326271,3038.1,3038.0,0.03334334]
[1633072705104,1.20326271,3038.1,3037.9,0.003]
[1633072705502,0.91346839,3038.7,3037.4,0.006]
[1633072705503,0.00192997,3038.0,3037.4,0.006]
[1633072705701,1.62450043,3039.2,3037.6,0.98955602]
[1633072705702,5.994e-05,3038.5,3037.6,0.98955602]
[1633072705904,5.994e-05,3038.5,3038.0,4.93756]
[1633072706103,5.994e-05,3038.5,3038.0,0.19307004]
[1633072706301,5.994e-05,3038.5,3038.0,0.161]
[1633072706500,5.994e-05,3038.5,3038.0,0.19423914]
[1633072706904,5.994e-05,3038.5,3038.0,3.45236]
[1633072707105,5.994e-05,3038.5,3038.1,3.2915567]
[1633072707300,5.994e-05,3038.5,3038.3,1.3259]
[1633072707501,0.02960485,3038.4,3038.1,3.44536884]
[1633072707707,0.02960485,3038.4,3038.3,0.9099]
[1633072707904,0.02960485,3038.4,3038.3,0.9432485]
[1633072708301,0.02960485,3038.4,3038.3,0.0333485]
[1633072708505,0.02960485,3038.4,3038.1,4.32946704]
[1633072708906,0.02960485,3038.4,3038.3,1.2615]
[1633072709104,0.003,3039.0,3038.3,1.30131085]
[1633072709303,0.12195489,3038.4,3038.3,3.10136414]
[1633072709506,0.06054773,3038.4,3038.3,4.39411589]
[1633072709702,0.003,3039.0,3038.6,3.2910956]
[1633072709905,0.003,3039.0,3038.9,2.14545466]
[1633072710105,0.93545232,3040.0,3039.0,1.1498]
[1633072710304,0.99309364,3039.5,3039.0,0.03497995]
[1633072710504,0.99309364,3039.5,3039.0,0.003]
[1633072710906,4.94112,3040.0,3038.9,0.04201873]
[1633072711104,0.004,3040.0,3038.9,0.04201873]
[1633072711303,0.004,3040.0,3039.0,0.003]
[1633072711304,1.00537151,3039.9,3039.0,0.003]
[1633072711509,1.18270003,3039.1,3039.0,0.003]
[1633072711907,1.99560898,3039.1,3039.0,0.003]
[1633072712108,4.93842,3039.0,3038.7,0.003]
[1633072712506,4.93842,3039.0,3038.2,3.29114]
[1633072712507,1.56374987,3038.8,3038.5,0.003]
[1633072712706,1.56374987,3038.8,3038.4,0.003]
[1633072712906,0.1833985,3039.0,3038.3,0.003]
[1633072713106,0.1833985,3039.0,3038.1,0.003]
[1633072713107,5.1218585,3039.0,3038.1,0.003]
[1633072713507,5.1218585,3039.0,3038.5,0.81432218]
[1633072713707,0.0253985,3039.0,3038.5,4.10630688]
[1633072714007,0.0253985,3039.0,3038.5,5.33240565]
[1633072714406,0.0253985,3039.0,3038.7,0.9837]
[1633072714608,1.19572101,3038.8,3038.7,1.01895078]
[1633072715008,1.19572101,3038.8,3038.5,0.003]
[1633072715406,1.19572101,3038.8,3038.1,1.0452]
[1633072715607,1.19572101,3038.8,3038.1,1.08025175]
[1633072715807,1.19572101,3038.8,3038.2,0.003]
[1633072716010,0.00153877,3038.7,3038.2,0.003]
[1633072716408,0.00153877,3038.7,3038.2,4.94053]
[1633072716611,0.00153877,3038.7,3038.2,0.89636856]
[1633072716811,0.00153877,3038.7,3038.3,0.003]
[1633072717212,0.00153877,3038.7,3038.4,1.19721962]
[1633072717611,0.00153877,3038.7,3038.5,0.003]
[1633072718009,0.00153877,3038.7,3038.5,0.03526629]
[1633072718211,0.02693936,3038.7,3038.5,0.03526629]
[1633072718409,0.02693936,3038.7,3038.6,0.16866747]
[1633072719511,0.02693936,3038.7,3038.6,0.20865629]
[1633072719712,0.02693936,3038.7,3038.6,0.16866747]
[1633072721516,0.003,3039.5,3038.6,1.48186747]
[1633072721711,0.003,3039.5,3038.7,1.0812]
[1633072721913,0.003,3040.0,3038.9,3.29066]
[1633072722111,0.003,3040.0,3039.7,0.00899]
[1633072722311,0.003,3040.0,3039.8,1.33315899]
[1633072722513,0.003,3040.5,3039.9,1.74366898]
[1633072722716,0.003,3041.0,3040.1,0.34533118]
[1633072722915,47.212,3041.7,3040.9,0.81066221]
[1633072723114,47.212,3041.7,3041.2,3.2884]
[1633072723316,47.212,3041.7,3041.3,1.01945541]
[1633072723513,47.212,3041.7,3041.3,0.9795]
[1633072723712,47.212,3041.7,3041.6,0.003]
[1633072723913,47.212,3041.7,3041.6,1.3736]
[1633072724312,47.212,3041.7,3041.6,1.40693373]
[1633072724514,48.21233514,3041.7,3041.6,1.40693373]
[1633072725121,8.0,3041.2,3041.0,0.003]
[1633072725514,12.9349,3041.2,3040.7,0.003]
[1633072725712,12.9349,3041.2,3040.3,0.003]
[1633072725713,0.8081364,3040.9,3040.5,0.006]
[1633072725913,0.95361262,3040.6,3040.5,0.003]
[1633072726112,0.8081364,3040.9,3040.4,0.006]
[1633072726514,0.00178288,3040.6,3040.4,0.006]
[1633072726718,0.00178288,3040.6,3039.6,3.28964]
[1633072726914,0.72400224,3039.7,3039.6,3.28964]
[1633072727312,0.72400224,3039.7,3039.6,0.003]
[1633072727715,0.02416174,3040.3,3039.2,0.006]
[1633072727914,0.02416174,3040.3,3039.1,0.006]
[1633072728716,1.12115214,3039.7,3039.6,1.7]
[1633072728915,2.7714532,3040.3,3039.6,1.7]
[1633072729118,0.09268552,3040.3,3039.6,1.74000212]
[1633072729316,0.00178288,3040.6,3039.7,0.003]
[1633072729715,0.81062515,3040.2,3039.7,0.003]
[1633072729916,0.98548463,3040.1,3039.7,0.003]
[1633072730219,0.00178288,3040.6,3039.8,3.9281545]
[1633072730415,0.00178288,3040.6,3039.9,3.36151798]
[1633072730615,0.00178288,3040.6,3039.9,2.36451798]
[1633072730815,0.00178288,3040.6,3039.8,3.88782007]
[1633072731016,0.00178288,3040.6,3039.9,1.0]
[1633072731216,0.00178288,3040.6,3040.2,0.85812483]
[1633072731217,1.19290262,3040.5,3040.2,0.85812483]
[1633072731416,1.19290262,3040.5,3040.2,0.89701535]
[1633072731417,0.003,3040.5,3040.2,0.89701535]
[1633072731818,0.003,3040.5,3040.0,3.42111076]
[1633072731819,0.003,3040.5,3040.0,1.03875262]
[1633072732018,0.003,3040.5,3039.5,0.003]
[1633072732219,0.003,3040.5,3039.6,5.11922412]
[1633072732416,0.003,3040.5,3039.6,5.08104806]
[1633072732618,1.0,3040.7,3039.7,0.03570753]
[1633072732822,0.82104294,3040.2,3040.0,0.003]
[1633072733218,0.82104294,3040.2,3039.6,1.82927112]
[1633072733619,5.75723294,3040.2,3039.6,1.82927112]
[1633072733820,3.29153,3040.3,3039.6,1.82927112]
[1633072734018,0.003,3040.5,3039.6,1.82927112]
[1633072734419,0.003,3040.5,3039.6,1.73864306]
[1633072734618,0.09561828,3040.5,3039.6,1.73864306]
[1633072734818,1.19572957,3040.0,3039.7,1.51138744]
[1633072735021,1.19572957,3040.0,3039.8,1.307]
[1633072735022,6.13214957,3040.0,3039.8,1.307]
[1633072735219,6.13214957,3040.0,3039.9,1.1106]
[1633072735421,6.13214957,3040.0,3039.9,1.3387]
[1633072735619,6.13214957,3040.0,3039.9,0.9845]
[1633072735821,6.13214957,3040.0,3039.9,1.2745]
[1633072736018,1.19572957,3040.0,3039.9,0.9552]
[1633072736221,1.19572957,3040.0,3039.9,1.1961]
[1633072736418,1.19572957,3040.0,3039.9,1.2832]
[1633072736620,1.19572957,3040.0,3039.9,1.382]
[1633072736820,3.29108,3040.3,3039.9,1.0111]
[1633072737021,0.00140787,3039.9,3039.8,1.0483]
[1633072737219,0.00140787,3039.9,3039.8,1.08800686]
[1633072737622,0.00140787,3039.9,3039.7,0.09068744]
[1633072737819,0.00140787,3039.9,3039.7,1.54888744]
[1633072738024,0.00140787,3039.9,3039.8,0.03879186]
[1633072738218,0.00140787,3039.9,3039.7,1.54888744]
[1633072738219,0.00140787,3039.9,3039.7,0.09068744]
[1633072738419,0.00140787,3039.9,3039.8,0.03366883]
[1633072738620,0.00140787,3039.9,3039.7,0.03375627]
[1633072738821,1.00140787,3039.9,3039.7,0.03375627]
[1633072739022,0.00140787,3039.9,3039.7,0.03375627]
[1633072739221,4.93769,3039.8,3039.7,0.03375627]
[1633072739423,5.72698332,3039.8,3039.7,0.03375627]
[1633072739823,1.7,3039.6,3039.0,0.006]
[1633072740022,0.02530442,3039.1,3038.5,0.003]
[1633072740421,0.02530442,3039.1,3038.4,0.003]
[1633072740624,0.79473341,3038.6,3038.4,0.003]
[1633072741623,4.93812,3038.9,3038.4,0.003]
[1633072741824,8.28463,3039.6,3038.4,0.003]
[1633072742021,8.28463,3039.6,3038.4,2.5492612]
[1633072742022,1.003,3039.5,3038.4,2.5492612]
[1633072742222,3.29203,3039.3,3038.5,0.03657322]
[1633072742421,3.29203,3039.3,3038.5,0.003]
[1633072742624,0.79519705,3038.7,3038.5,0.003]
[1633072742824,5.73378705,3038.7,3038.5,0.003]
[1633072743624,5.73378705,3038.7,3038.2,0.003]
[1633072743888,5.73378705,3038.7,3037.9,0.92092431]
[1633072744088,5.73378705,3038.7,3038.0,1.4991]
[1633072744287,5.73378705,3038.7,3038.0,1.53758104]
[1633072744487,5.73378705,3038.7,3038.1,0.003]
[1633072744687,5.73378705,3038.7,3038.2,1.17200165]
[1633072744688,3.29282,3038.5,3038.2,1.17200165]
[1633072744889,3.29282,3038.5,3038.2,1.21102756]
[1633072745089,3.29282,3038.5,3038.3,0.003]
[1633072745288,0.79519705,3038.7,3038.3,0.003]
[1633072745289,0.74519705,3038.7,3038.3,0.003]
[1633072745488,0.15099989,3038.4,3038.3,0.003]
[1633072747290,9.87669,3039.1,3038.6,1.9750354]
[1633072747291,3.2923,3039.1,3038.6,1.9750354]
[1633072747490,8.07956771,3039.5,3038.7,3.4647742]
[1633072747491,0.003,3039.5,3038.7,3.4647742]
[1633072747691,0.003,3039.5,3039.0,4.93593]
[1633072747890,0.003,3039.5,3039.1,1.0437]
[1633072748290,0.003,3039.5,3039.1,1.90052565]
[1633072748497,0.003,3039.5,3039.1,4.10853536]
[1633072748693,0.003,3039.5,3039.3,0.0303731]
[1633072748890,0.003,3039.5,3039.1,5.74665918]
[1633072749092,0.003,3039.5,3039.1,5.65403511]
[1633072749291,0.003,3039.5,3039.3,1.7]
[1633072749490,0.003,3039.5,3039.4,1.07263088]
[1633072749691,0.003,3039.5,3039.4,1.0909]
[1633072749893,0.003,3039.5,3039.4,1.12374391]
[1633072750893,0.003,3039.5,3039.3,1.7]
[1633072751095,0.07827408,3039.5,3039.4,1.22064031]
[1633072751292,0.07827408,3039.5,3039.3,1.7]
[1633072751494,0.07827408,3039.5,3039.4,1.35344898]
[1633072751694,0.07827408,3039.5,3039.3,1.7]
[1633072751895,1.62926901,3039.4,3039.3,1.7]
[1633072752395,1.65412228,3039.4,3038.4,0.04136004]
[1633072752595,4.93832,3038.8,3038.4,0.04136004]
[1633072752795,3.29221,3039.1,3038.5,0.003]
[1633072752997,0.94554408,3039.0,3038.5,0.003]
[1633072753396,0.81044314,3038.8,3038.5,0.003]
[1633072753996,5.74880314,3038.8,3038.5,0.003]
[1633072754198,1.83941503,3038.7,3038.5,0.003]
[1633072754497,1.83941503,3038.7,3038.0,0.003]
[1633072754498,1.86511356,3038.7,3038.0,0.003]
[1633072754696,0.94554408,3039.0,3038.0,0.003]
[1633072754697,0.003,3039.0,3038.0,0.003]
[1633072754896,0.003,3039.0,3038.0,1.53]
[1633072755097,0.003,3039.0,3038.0,1.56693]
[1633072755297,0.003,3039.0,3038.0,1.56993]
[1633072755496,0.003,3039.0,3038.1,1.1868]
[1633072755699,0.003,3039.0,3038.0,1.533]
[1633072755700,1.74085006,3038.7,3038.0,0.003]
[1633072756111,2.40192891,3038.9,3037.7,0.003]
[1633072756305,2.40192891,3038.9,3037.2,2.77500601]
[1633072756505,0.07549012,3038.7,3037.6,1.9757701]
[1633072756704,0.99842802,3037.9,3037.8,0.11189211]
[1633072757108,0.99842802,3037.9,3037.4,1.0151]
[1633072757109,8.85688932,3037.9,3037.5,0.003]
[1633072757306,8.85688932,3037.9,3036.9,0.003]
[1633072757308,0.02418246,3037.6,3036.9,0.003]
[1633072757509,0.02418246,3037.6,3036.4,0.006]
[1633072757510,0.18218246,3037.6,3036.4,0.006]
[1633072757706,0.18218246,3037.6,3036.1,0.006]
[1633072757908,0.74141253,3037.1,3036.4,0.83504896]
[1633072758104,4.19098206,3037.3,3035.9,1.9767572]
[1633072758304,4.94192,3036.6,3036.5,0.006]
[1633072758506,4.94192,3036.6,3036.0,0.009]
[1633072758707,1.0,3036.5,3036.0,0.009]
[1633072758904,1.0,3036.5,3035.6,0.009]
[1633072759104,0.158,3036.6,3035.9,0.86587914]
[1633072759105,0.57150036,3036.6,3035.9,0.86587914]
[1633072759305,3.29494,3036.5,3035.7,0.85318901]
[1633072759504,3.29494,3036.5,3036.0,0.009]
[1633072759704,3.29494,3036.5,3035.8,0.009]
[1633072759705,3.75912639,3036.5,3035.8,0.009]
[1633072760105,4.61218815,3036.5,3035.8,0.009]
[1633072760304,0.87761458,3036.4,3035.8,0.009]
[1633072760607,4.94279,3036.2,3035.8,0.009]
[1633072761012,4.94279,3036.2,3035.5,0.003]
[1633072761013,4.14800176,3036.5,3035.7,1.7]
[1633072761405,4.14800176,3036.5,3035.8,0.009]
[1633072761605,4.14800176,3036.5,3035.8,0.96669922]
[1633072761606,3.29494,3036.5,3035.8,0.96669922]
[1633072762007,3.29494,3036.5,3036.2,1.14874768]
[1633072762008,0.13187856,3036.4,3036.2,1.14874768]
[1633072762213,0.13187856,3036.4,3036.2,1.18639343]
[1633072762406,0.13187856,3036.4,3036.3,0.006]
[1633072762706,0.13187856,3036.4,3036.3,0.78604691]
[1633072763106,0.13187856,3036.4,3036.3,0.81965374]
[1633072763508,0.13187856,3036.4,3036.3,0.006]
[1633072763910,0.13187856,3036.4,3036.2,0.006]
[1633072764208,4.94316,3036.2,3036.0,0.009]
[1633072764808,0.13187856,3036.4,3036.0,0.009]
[1633072765608,0.86004711,3036.3,3036.0,0.009]
[1633072765808,4.9427,3036.2,3036.0,0.009]
[1633072766011,0.13187856,3036.4,3036.0,0.009]
[1633072767409,0.001,3037.7,3036.5,2.97206037]
[1633072767609,0.00088997,3037.6,3036.6,4.10237146]
[1633072767810,0.00088997,3037.6,3036.7,1.5006]
[1633072768013,0.00088997,3037.6,3037.0,4.93895]
[1633072768210,0.00088997,3037.6,3037.1,0.158]
[1633072768410,0.00088997,3037.6,3037.5,0.81310082]
[1633072768712,0.00088997,3037.6,3037.5,2.83995119]
[1633072769110,0.00088997,3037.6,3037.5,6.99502648]
[1633072769309,0.00088997,3037.6,3037.5,13.52590155]
[1633072769511,8.997e-05,3037.6,3037.5,13.52590155]
[1633072769710,0.003,3039.0,3037.6,5.2663528]
[1633072769912,0.003,3039.0,3037.7,3.41704705]
[1633072770113,0.003,3039.0,3037.8,0.158]
[1633072770712,0.003,3039.0,3038.9,1.96340857]
[1633072770912,0.003,3039.0,3038.9,3.36260857]
[1633072771313,0.003,3039.0,3038.9,2.29216619]
[1633072771511,0.003,3039.0,3038.9,1.3992]
[1633072772012,0.003,3039.0,3038.1,3.29142]
[1633072772410,0.003,3039.0,3038.5,1.02020344]
[1633072773013,0.003,3039.0,3038.4,0.99851491]
[1633072773014,0.06841831,3039.0,3038.4,0.99851491]
[1633072773215,0.06841831,3039.0,3038.6,0.12195294]
[1633072773414,0.69584967,3038.9,3038.6,0.12195294]
[1633072774017,0.99537432,3038.8,3038.6,0.12195294]
[1633072774212,1.98995352,3038.7,3038.6,0.12195294]
[1633072774414,1.0,3038.7,3038.6,0.12195294]
[1633072774614,5.93521432,3038.8,3038.6,0.12195294]
[1633072775014,5.93521432,3038.8,3037.4,0.003]
[1633072775015,0.42385763,3037.5,3037.4,0.003]
[1633072775216,1.25601974,3037.5,3037.4,0.003]
[1633072775414,1.25601974,3037.5,3036.7,0.006]
[1633072775615,5.36517763,3037.5,3036.8,0.006]
[1633072775817,5.36517763,3037.5,3036.6,0.006]
[1633072776016,5.36517763,3037.5,3037.1,1.01319201]
[1633072776419,5.36517763,3037.5,3037.2,0.003]
[1633072776420,0.42385763,3037.5,3037.2,0.003]
[1633072776616,0.003,3038.5,3037.3,4.93862]
[1633072776816,0.003,3038.5,3037.8,1.6461062]
[1633072777015,0.003,3038.5,3037.9,0.8683331]
[1633072777219,0.003,3038.5,3038.0,2.3740781]
[1633072777415,0.003,3038.5,3038.0,1.77191376]
[1633072777616,0.003,3038.5,3038.1,0.93025727]
[1633072777816,0.003,3038.5,3038.2,8.38564]
[1633072778016,0.003,3038.5,3038.2,11.44912]
[1633072778216,0.003,3038.5,3038.2,11.29112]
[1633072778417,0.12648319,3038.4,3038.2,11.29112]
[1633072778616,0.12648319,3038.4,3038.3,0.06091589]
[1633072779217,0.12648319,3038.4,3038.3,2.65384229]
[1633072779416,0.12648319,3038.4,3038.3,1.70670709]
[1633072780018,0.12648319,3038.4,3038.3,3.40670709]
[1633072780418,0.12648319,3038.4,3038.3,4.11512754]
[1633072780619,0.003,3038.5,3038.3,4.78692754]
[1633072780819,0.003,3038.5,3038.3,5.78692754]
[1633072781019,0.003,3038.5,3038.3,13.78692754]
[1633072781219,0.003,3038.5,3037.5,0.003]
[1633072781220,1.18446394,3038.2,3037.5,0.003]
[1633072781419,0.158,3038.1,3037.5,0.003]
[1633072781622,0.158,3038.1,3036.8,2.40872745]
[1633072781623,1.18446394,3038.2,3036.8,2.43819081]
[1633072781824,1.18446394,3038.2,3037.5,1.646146]
[1633072782018,1.18446394,3038.2,3037.1,0.158]
[1633072782218,1.95900163,3038.2,3037.5,0.003]
[1633072782417,1.95900163,3038.2,3037.2,0.003]
[1633072782618,1.18446394,3038.2,3036.9,2.47813874]
[1633072782817,1.18446394,3038.2,3037.0,0.161]
[1633072783018,1.18446394,3038.2,3037.0,1.164]
[1633072783217,1.18446394,3038.2,3037.1,0.003]
[1633072783419,1.18446394,3038.2,3037.1,2.56099963]
[1633072783619,1.18446394,3038.2,3038.1,0.99278478]
[1633072783819,1.18446394,3038.2,3038.1,1.5219]
[1633072784019,1.18446394,3038.2,3038.1,1.61557265]
[1633072784020,1.27820277,3038.2,3038.1,1.61557265]
[1633072784420,1.27820277,3038.2,3038.1,2.73075708]
[1633072784819,1.27820277,3038.2,3038.1,8.62063295]
[1633072785022,1.47823117,3038.3,3038.2,1.18446394]
[1633072785520,1.47823117,3038.3,3038.2,2.18446394]
[1633072785922,0.003,3038.5,3038.3,0.52176883]
[1633072789323,0.003,3038.5,3038.3,1.50939503]
[1633072789528,0.0468203,3038.4,3038.3,1.50939503]
[1633072791324,0.0468203,3038.4,3038.3,2.69189927]
[1633072791791,0.0468203,3038.4,3038.3,3.42120209]
[1633072791928,0.0468203,3038.4,3038.3,2.69189927]
[1633072792326,0.0468203,3038.4,3038.3,1.50939503]
[1633072794788,0.003,3038.5,3038.3,1.50939503]
[1633072794927,0.003,3039.0,3038.4,1.13997591]
[1633072795128,0.003,3039.0,3038.8,0.79125971]
[1633072795327,0.003,3039.0,3038.9,1.4578]
[1633072795527,0.003,3039.0,3038.8,0.79125971]
[1633072795528,0.003,3039.0,3038.8,0.9872753]
[1633072795728,0.003,3039.0,3038.9,1.0274]
[1633072796126,0.003,3039.0,3038.8,0.9872753]
[1633072796727,0.003,3039.0,3038.9,1.2747]
[1633072796929,0.003,3039.0,3038.8,0.9872753]
[1633072797126,0.003,3039.0,3038.9,1.0342]
[1633072797329,0.003,3039.0,3038.9,1.08523201]
[1633072797931,0.003,3039.0,3038.9,1.8427753]
[1633072798529,0.003,3039.0,3038.9,2.8427753]
[1633072799729,0.003,3039.0,3038.9,2.7927753]
[1633072800133,0.003,3039.0,3038.9,2.83021891]
[1633072801131,0.003,3039.0,3038.9,1.7949869]
[1633072801331,0.003,3039.0,3038.9,1.03744361]
[1633072802733,0.003,3039.0,3038.9,0.03744361]
[1633072802933,0.003,3039.0,3038.9,1.03744361]
[1633072803937,0.003,3039.0,3038.9,7.61888361]
[1633072804137,0.003,3039.0,3038.9,10.05089551]
[1633072804334,0.003,3039.0,3038.9,7.56888361]
[1633072804535,0.003,3039.5,3038.9,7.60664278]
[1633072804736,0.003,3039.5,3039.2,0.91192186]
[1633072804935,0.003,3039.5,3039.2,1.78244317]
[1633072805143,0.003,3039.5,3039.2,1.81872687]
[1633072805535,0.003,3039.5,3039.3,4.93567]
[1633072805735,0.003,3039.5,3039.3,4.97317407]
[1633072805937,0.003,3039.5,3039.3,0.03750407]
[1633072806135,0.003,3039.5,3039.1,12.277388]
[1633072806336,0.003,3039.5,3039.2,1.03887022]
[1633072806534,0.003,3039.5,3039.1,0.987088]
[1633072806535,4.94015,3039.5,3039.1,0.987088]
[1633072806797,4.94015,3039.5,3038.9,2.0]
[1633072806798,0.02466772,3039.2,3038.9,0.50905839]
[1633072806937,0.158,3039.1,3038.9,0.50905839]
[1633072807137,0.158,3039.1,3037.6,8.234971]
[1633072807138,1.05996525,3038.1,3037.7,0.003]
[1633072807341,4.10497158,3038.0,3037.7,0.003]
[1633072807543,4.10497158,3038.0,3037.7,2.483]
[1633072807544,4.32554118,3037.8,3037.7,2.483]
[1633072807739,4.32554118,3037.8,3036.9,0.006]
[1633072807740,1.42303475,3037.7,3036.9,0.006]
[1633072808036,1.42303475,3037.7,3036.2,7.3799282]
[1633072808037,1.55941075,3037.7,3037.5,0.003]
[1633072808238,0.95509352,3037.5,3036.6,1.3066]
[1633072808439,0.95509352,3037.5,3036.6,0.04010209]
[1633072808637,5.89550352,3037.5,3036.7,0.006]
[1633072808839,0.158,3037.4,3036.7,0.006]
[1633072809039,1.294,3037.1,3036.6,0.006]
[1633072809236,0.158,3037.4,3036.6,2.486]
[1633072809439,0.158,3037.4,3037.1,0.77999186]
[1633072809638,1.74158719,3038.1,3037.1,0.81997099]
[1633072809639,1.89958719,3038.1,3037.1,0.81997099]
[1633072809838,1.89958719,3038.1,3037.2,0.003]
[1633072809839,1.34378686,3038.1,3037.2,0.003]
[1633072810041,1.18578686,3038.1,3037.2,0.003]
[1633072810438,1.18578686,3038.1,3037.8,1.95095048]
[1633072810638,1.18578686,3038.1,3037.8,1.98277622]
[1633072811038,1.18578686,3038.1,3037.8,0.03182574]
[1633072811238,1.18578686,3038.1,3037.5,1.25046192]
[1633072811639,1.18578686,3038.1,3037.5,1.25346192]
[1633072812038,1.18578686,3038.1,3037.8,1.294]
[1633072812238,1.18578686,3038.1,3037.8,2.7533]
[1633072812438,1.18578686,3038.1,3037.8,4.49971781]
[1633072812639,1.18578686,3038.1,3037.9,1.03604809]
[1633072812840,1.18578686,3038.1,3038.0,0.9874459]
[1633072813038,1.18578686,3038.1,3038.0,2.2814459]
[1633072813239,1.18578686,3038.1,3038.0,1.02480249]
[1633072814439,1.18578686,3038.1,3038.0,2.02480249]
[1633072814639,1.18578686,3038.1,3038.0,1.03735659]
[1633072814839,1.18578686,3038.1,3038.0,8.36782914]
[1633072815038,1.18578686,3038.1,3038.0,9.36720999]
[1633072815638,1.18578686,3038.1,3038.0,10.66120999]
[1633072815840,1.18578686,3038.1,3038.0,9.36720999]
[1633072816942,1.18578686,3038.1,3038.0,8.36720999]
[1633072817140,1.18578686,3038.1,3038.0,10.66120999]
[1633072817741,1.18578686,3038.1,3038.0,9.36720999]
[1633072818146,1.18578686,3038.1,3038.0,10.66120999]
[1633072818801,1.18578686,3038.1,3038.0,15.59837999]
[1633072819344,1.18578686,3038.1,3038.0,10.66120999]
[1633072819544,1.18578686,3038.1,3038.0,9.36720999]
[1633072819745,1.18578686,3038.1,3038.0,9.35954523]
[1633072822050,1.18578686,3038.1,3038.0,11.05954523]
[1633072822446,1.18578686,3038.1,3038.0,2.06720999]
[1633072822646,1.18578686,3038.1,3038.0,2.0291695]
[1633072822850,1.18578686,3038.1,3038.0,2.05121724]
[1633072823459,2.47978686,3038.1,3038.0,1.7]
[1633072823657,3.77378686,3038.1,3038.0,1.7]
[1633072824451,1.0,3038.0,3037.5,2.483]
[1633072824669,0.66503568,3037.9,3037.5,2.483]
[1633072825051,4.94089,3037.8,3037.5,2.483]
[1633072825251,0.82324648,3037.7,3037.5,0.003]
[1633072825459,0.9385536,3037.6,3037.5,0.003]
[1633072825653,0.9385536,3037.6,3037.1,0.04207613]
[1633072825851,0.9385536,3037.6,3037.2,0.003]
[1633072826252,6.01015392,3037.6,3036.8,0.006]
[1633072826650,3.29433,3037.5,3037.3,0.94739382]
[1633072826852,3.29433,3037.5,3036.9,0.06141581]
[1633072827051,3.29433,3037.5,3037.4,0.003]
[1633072827253,4.58833,3037.5,3037.0,0.006]
[1633072827457,4.94136,3037.3,3037.0,0.006]
[1633072827915,1.34780986,3038.1,3037.5,1.88475203]
[1633072828121,0.003,3039.0,3037.6,2.35604898]
[1633072828321,0.65197931,3039.0,3038.0,0.003]
[1633072828518,0.65197931,3039.0,3038.0,1.4045]
[1633072828519,0.003,3039.0,3038.0,1.4045]